fUST/lending_fUST_20250201
["ID","MTS","AMOUNT","RATE_DAILY","PERIOD"]
[351167830,1738386638854,-500.0,0.00016438,2]
[351167831,1738386638864,-81.76502762,0.00016438,2]
[351167843,1738386640935,-418.23497238,0.00016438,2]
[351167844,1738386640945,-500.0,0.00016438,2]
[351167845,1738386640954,-500.69885235,0.00016438,2]
[351167846,1738386640966,-170.41067776,0.00016438,2]
[351167847,1738386640975,-518.31,0.00016438,2]
[351167848,1738386640984,-413.68282251,0.00016438,2]
[351167894,1738386643889,-8461.882841,0.00016438,2]
[351167895,1738386643900,-397.1646696,0.00016438,2]
[351167896,1738386643949,-1608.20949023,0.00016438,2]
[351168497,1738386955649,194.83549,0.00013699,2]
[351168500,1738387224902,215.545084,0.00013973,2]
[351168514,1738387622128,5000.0,0.00015056,2]
[351168515,1738387628846,413.58644338,0.00015056,2]
[351168516,1738387635125,-324.0638576,0.00015082,2]
[351168517,1738387635148,-160.27220844,0.00015349,2]
[351168518,1738387635173,-113.53125937,0.00015396,2]
[351168519,1738387645133,-2875.68639033,0.00015396,2]
[351168520,1738387645156,-300.0,0.00015437,2]
[351168521,1738387645178,-4499.1208941,0.00015438,2]
[351168522,1738387663877,1000.0,0.00018,30]
[351168523,1738387712370,162.73801032,0.00015,2]
[351168524,1738387723596,4491.88713594,0.00015,2]
[351168525,1738387725621,21726.19706782,0.00013,2]
[351168528,1738387756107,-243.971,0.00015393,2]
[351168529,1738387756130,-246.029,0.00015418,2]
[351168530,1738387759111,-53.971,0.00015418,2]
[351168531,1738387759134,-24360.71239126,0.00015419,2]
[351168532,1738387768100,-539.28760874,0.00015419,2]
[351168533,1738387768122,-9.15133172,0.00016191,2]
[351168534,1738387781755,186.048982,0.00013699,2]
[351168586,1738387832049,-160.0,0.0001619,2]
[351168588,1738387832059,-288.46367761,0.00016191,2]
[351168606,1738387832220,-12947.98410695,0.00016191,2]
[351168609,1738387832230,-638.08600317,0.00016238,2]
[351168611,1738387832239,-606.9449249,0.00016338,2]
[351168614,1738387832248,-299.61777957,0.00016428,2]
[351168616,1738387832258,-227.15914117,0.00016437,2]
[351168618,1738387832267,-406.77903382,0.00016437,2]
[351168620,1738387832277,-504.09054318,0.00016437,2]
[351168622,1738387832286,-500.0,0.00016437,2]
[351168624,1738387832295,-500.0,0.00016437,2]
[351168626,1738387832305,-500.0,0.00016437,2]
[351168627,1738387832314,-500.0,0.00016437,2]
[351168628,1738387832323,-500.0,0.00016437,2]
[351168629,1738387832333,-500.0,0.00016437,2]
[351168631,1738387832343,-474.55646798,0.00016437,2]
[351168633,1738387832353,-362.36283433,0.00016437,2]
[351168635,1738387832363,-500.0,0.00016437,2]
[351168637,1738387832372,-500.0,0.00016437,2]
[351168639,1738387832383,-500.0,0.00016437,2]
[351168641,1738387832394,-500.0,0.00016437,2]
[351168643,1738387832403,-500.0,0.00016437,2]
[351168646,1738387832413,-500.0,0.00016437,2]
[351168648,1738387832423,-500.0,0.00016437,2]
[351168650,1738387832432,-247.10443738,0.00016437,2]
[351168652,1738387832442,-160.95157742,0.00016437,2]
[351168654,1738387832451,-10065.06456586,0.00016438,5]
[351168656,1738387832463,-452.14895686,0.00016438,2]
[351168658,1738387832473,-503.92210671,0.00016438,2]
[351168660,1738387832483,-500.0,0.00016438,2]
[351168662,1738387832492,-267.95562873,0.00016438,2]
[351168664,1738387832501,-503.2383683,0.00016438,2]
[351168666,1738387832511,-502.68026088,0.00016438,2]
[351168668,1738387832521,-615.72361604,0.00016438,2]
[351168670,1738387832531,-500.0,0.00016438,2]
[351168672,1738387832540,-502.18856193,0.00016438,2]
[351168674,1738387832550,-500.56537875,0.00016438,2]
[351168676,1738387832559,-537.58267242,0.00016438,2]
[351168677,1738387832569,-437.65190029,0.00016438,2]
[351168679,1738387832579,-500.0,0.00016438,2]
[351168681,1738387832589,-500.0,0.00016438,2]
[351168683,1738387832599,-500.0,0.00016438,2]
[351168685,1738387832609,-241.96973575,0.00016438,2]
[351168687,1738387832619,-500.0,0.00016438,2]
[351168689,1738387832628,-502.96983292,0.00016438,2]
[351168691,1738387832637,-593.45103653,0.00016438,2]
[351168693,1738387832647,-500.0,0.00016438,2]
[351168695,1738387832656,-501.4242335,0.00016438,2]
[351168697,1738387832665,-500.0,0.00016438,2]
[351168699,1738387832674,-646.49013531,0.00016438,2]
[351168701,1738387832684,-500.0,0.00016438,2]
[351168703,1738387832694,-537.05216135,0.00016438,2]
[351168705,1738387832703,-502.66944541,0.00016438,2]
[351168707,1738387832714,-501.82413062,0.00016438,2]
[351168709,1738387832723,-500.89148308,0.00016438,2]
[351168711,1738387832733,-500.0,0.00016438,2]
[351168713,1738387832742,-500.0,0.00016438,2]
[351168715,1738387832751,-501.29886097,0.00016438,2]
[351168717,1738387832761,-500.0,0.00016438,2]
[351168719,1738387832771,-501.44217224,0.00016438,2]
[351168721,1738387832781,-501.12307287,0.00016438,2]
[351168723,1738387832791,-503.36093254,0.00016438,2]
[351168725,1738387832800,-500.0,0.00016438,2]
[351168727,1738387832808,-501.10782749,0.00016438,2]
[351168729,1738387832817,-501.76145453,0.00016438,2]
[351168731,1738387832826,-500.0,0.00016438,2]
[351168733,1738387832835,-503.62554784,0.00016438,2]
[351168735,1738387832845,-500.0,0.00016438,2]
[351168737,1738387832854,-500.0,0.00016438,2]
[351168739,1738387832863,-500.0,0.00016438,2]
[351168741,1738387832872,-503.95369218,0.00016438,2]
[351168743,1738387832881,-502.55150872,0.00016438,2]
[351168744,1738387832891,-500.0,0.00016438,2]
[351168746,1738387832901,-503.23102683,0.00016438,2]
[351168748,1738387832911,-501.25272892,0.00016438,2]
[351168750,1738387832921,-502.51214607,0.00016438,2]
[351168751,1738387832930,-502.05849883,0.00016438,2]
[351168752,1738387832940,-501.24918352,0.00016438,2]
[351168753,1738387832949,-500.0,0.00016438,2]
[351168754,1738387832959,-500.0,0.00016438,2]
[351168755,1738387832969,-500.0,0.00016438,2]
[351168756,1738387832979,-501.58061157,0.00016438,2]
[351168757,1738387832988,-500.0,0.00016438,2]
[351168758,1738387832998,-500.0,0.00016438,2]
[351168759,1738387833008,-502.59838849,0.00016438,2]
[351168760,1738387833018,-502.70505389,0.00016438,2]
[351168761,1738387833027,-501.08297804,0.00016438,2]
[351168762,1738387833037,-522.77694266,0.00016438,2]
[351168763,1738387833047,-503.63500725,0.00016438,2]
[351168764,1738387833057,-501.47285816,0.00016438,2]
[351168765,1738387833066,-500.0,0.00016438,2]
[351168766,1738387833075,-503.70743947,0.00016438,2]
[351168767,1738387833085,-500.46118294,0.00016438,2]
[351168768,1738387833094,-500.0,0.00016438,2]
[351168769,1738387833103,-503.90787278,0.00016438,2]
[351168770,1738387833113,-630.93880359,0.00016438,2]
[351168771,1738387833122,-500.0,0.00016438,2]
[351168772,1738387833131,-200.0,0.00016438,2]
[351168773,1738387833141,-500.0,0.00016438,2]
[351168774,1738387833150,-501.72600221,0.00016438,2]
[351168775,1738387833159,-589.73067449,0.00016438,2]
[351168776,1738387833169,-572.95436295,0.00016438,2]
[351168777,1738387833178,-303.58092965,0.00016438,2]
[351168778,1738387833188,-501.11774906,0.00016438,2]
[351168779,1738387833197,-210.38157264,0.00016438,2]
[351168780,1738387833207,-291.27220381,0.00016438,2]
[351168781,1738387833218,-502.39987665,0.00016438,2]
[351168782,1738387833227,-500.0,0.00016438,2]
[351168783,1738387833237,-502.23045844,0.00016438,2]
[351168784,1738387833246,-500.0,0.00016438,2]
[351168785,1738387833255,-500.0,0.00016438,2]
[351168786,1738387833265,-500.0,0.00016438,2]
[351168787,1738387833275,-510.05179015,0.00016438,2]
[351168788,1738387833286,-500.0,0.00016438,2]
[351168789,1738387833296,-500.96381523,0.00016438,2]
[351168790,1738387833305,-500.0,0.00016438,2]
[351168791,1738387833315,-500.0,0.00016438,2]
[351168792,1738387833324,-500.0,0.00016438,2]
[351168793,1738387833334,-501.75668629,0.00016438,2]
[351168794,1738387833343,-500.0,0.00016438,2]
[351168795,1738387833352,-500.0,0.00016438,2]
[351168796,1738387833362,-500.0,0.00016438,2]
[351168797,1738387833372,-500.0,0.00016438,2]
[351168798,1738387833382,-500.0,0.00016438,2]
[351168799,1738387833396,-500.0,0.00016438,2]
[351168800,1738387833406,-500.0,0.00016438,2]
[351168801,1738387833415,-151.0,0.00016438,2]
[351168802,1738387833424,-500.0,0.00016438,2]
[351168803,1738387833435,-500.0,0.00016438,2]
[351168804,1738387833445,-500.0,0.00016438,2]
[351168805,1738387833454,-500.0,0.00016438,2]
[351168806,1738387833465,-500.0,0.00016438,2]
[351168807,1738387833475,-500.0,0.00016438,2]
[351168808,1738387833484,-309.56625671,0.00016438,2]
[351168826,1738387837992,-190.43374329,0.00016438,2]
[351168827,1738387838002,-500.0,0.00016438,2]
[351168828,1738387838012,-500.0,0.00016438,2]
[351168829,1738387838021,-500.0,0.00016438,2]
[351168830,1738387838031,-500.0,0.00016438,2]
[351168831,1738387838040,-500.0,0.00016438,2]
[351168832,1738387838050,-500.0,0.00016438,2]
[351168833,1738387838059,-500.0,0.00016438,2]
[351168834,1738387838068,-500.0,0.00016438,2]
[351168835,1738387838078,-500.0,0.00016438,2]
[351168836,1738387838088,-500.0,0.00016438,2]
[351168837,1738387838098,-339.37298378,0.00016438,2]
[351168838,1738387838107,-594.79369469,0.00016438,2]
[351168839,1738387838118,-151.0,0.00016438,2]
[351168840,1738387838127,-500.0,0.00016438,2]
[351168841,1738387838136,-500.0,0.00016438,2]
[351168842,1738387838147,-151.0,0.00016438,2]
[351168843,1738387838157,-500.0,0.00016438,2]
[351168844,1738387838167,-500.0,0.00016438,2]
[351168845,1738387838177,-500.0,0.00016438,2]
[351168846,1738387838187,-500.0,0.00016438,2]
[351168847,1738387838197,-500.0,0.00016438,2]
[351168848,1738387838207,-500.0,0.00016438,2]
[351168849,1738387838218,-500.0,0.00016438,2]
[351168850,1738387838227,-500.0,0.00016438,2]
[351168851,1738387838237,-500.0,0.00016438,2]
[351168852,1738387838246,-500.0,0.00016438,2]
[351168853,1738387838255,-151.0,0.00016438,2]
[351168854,1738387838265,-505.5878704,0.00016438,2]
[351168855,1738387838275,-500.0,0.00016438,2]
[351168856,1738387838285,-504.0342777,0.00016438,2]
[351168857,1738387838293,-500.0,0.00016438,2]
[351168858,1738387838303,-417.07489223,0.00016438,2]
[351168859,1738387838312,-500.0,0.00016438,2]
[351168860,1738387838323,-500.0,0.00016438,2]
[351168861,1738387838333,-500.0,0.00016438,2]
[351168862,1738387838343,-151.0,0.00016438,2]
[351168863,1738387838353,-500.0,0.00016438,2]
[351168864,1738387838367,-501.26225865,0.00016438,2]
[351168865,1738387838377,-500.0,0.00016438,2]
[351168866,1738387838387,-500.0,0.00016438,2]
[351168867,1738387838400,-500.0,0.00016438,2]
[351168868,1738387838410,-500.0,0.00016438,2]
[351168869,1738387838419,-500.0,0.00016438,2]
[351168870,1738387838430,-248.95,0.00016438,2]
[351168871,1738387838439,-573.57131605,0.00016438,2]
[351168872,1738387838449,-151.0,0.00016438,2]
[351168873,1738387838461,-151.0,0.00016438,2]
[351168874,1738387838471,-500.0,0.00016438,2]
[351168875,1738387838481,-500.0,0.00016438,2]
[351168876,1738387838491,-500.0,0.00016438,2]
[351168877,1738387838501,-512.0806406,0.00016438,2]
[351168878,1738387838511,-320.64971113,0.00016438,2]
[351168879,1738387838522,-151.0,0.00016438,2]
[351168880,1738387838532,-357.92597151,0.00016438,2]
[351168881,1738387838556,-148.86506846,0.00016438,2]
[351168882,1738387838566,-506.98929144,0.00016438,2]
[351168883,1738387838576,-500.0,0.00016438,2]
[351168884,1738387838585,-500.0,0.00016438,2]
[351168885,1738387838595,-154.11769733,0.00016438,2]
[351168934,1738387842929,-199.22648042,0.00016438,2]
[351168935,1738387842938,-280.16751958,0.00016438,2]
[351168936,1738387842952,-219.83248042,0.00016438,2]
[351168937,1738387842962,-500.0,0.00016438,2]
[351168938,1738387842972,-503.00687867,0.00016438,2]
[351168939,1738387842981,-500.0,0.00016438,2]
[351168940,1738387842991,-151.0,0.00016438,2]
[351168941,1738387843001,-500.0,0.00016438,2]
[351168942,1738387843011,-234.902944,0.00016438,2]
[351168943,1738387843022,-503.85574557,0.00016438,2]
[351168944,1738387843033,-504.09733192,0.00016438,2]
[351168945,1738387843045,-17404.64089502,0.00016438,2]
[351168955,1738387846004,-331.266836,0.00016438,2]
[351168956,1738387846064,-8541.53480683,0.00016438,2]
[351168957,1738387846125,-24640.44746215,0.00016438,2]
[351168958,1738387846135,-426.41788455,0.00016438,2]
[351168959,1738387846145,-500.0,0.00016438,2]
[351168960,1738387846154,-500.0,0.00016438,2]
[351168961,1738387846164,-500.0,0.00016438,2]
[351168962,1738387846174,-500.0,0.00016438,2]
[351168963,1738387846183,-500.0,0.00016438,2]
[351168965,1738387846192,-500.0,0.00016438,2]
[351168967,1738387846202,-151.0,0.00016438,2]
[351168969,1738387846211,-500.0,0.00016438,2]
[351168971,1738387846221,-500.0,0.00016438,2]
[351168972,1738387846230,-500.0,0.00016438,2]
[351168973,1738387846239,-500.0,0.00016438,2]
[351168974,1738387846249,-500.0,0.00016438,2]
[351168975,1738387846258,-500.0,0.00016438,2]
[351168976,1738387846267,-500.0,0.00016438,2]
[351168977,1738387846276,-1000.0,0.00016438,7]
[351168978,1738387846286,-203.32347,0.00016438,2]
[351168979,1738387846295,-500.0,0.00016438,2]
[351168980,1738387846304,-203.32347,0.00016438,2]
[351168981,1738387846314,-151.0,0.00016438,2]
[351168982,1738387846324,-640.52,0.00016438,2]
[351168983,1738387846333,-151.0,0.00016438,2]
[351168984,1738387846343,-500.0,0.00016438,2]
[351168985,1738387846352,-500.0,0.00016438,2]
[351168986,1738387846362,-500.0,0.00016438,2]
[351168987,1738387846371,-500.0,0.00016438,2]
[351168988,1738387846382,-497.69754495,0.00016438,2]
[351168989,1738387846437,-2.30245505,0.00016438,2]
[351168990,1738387846446,-64.12724777,0.00016438,2]
[351168991,1738387846457,-86.87275223,0.00016438,2]
[351168992,1738387846467,-151.0,0.00016438,2]
[351168993,1738387846479,-500.0,0.00016438,2]
[351168994,1738387846488,-500.0,0.00016438,2]
[351168995,1738387846498,-500.0,0.00016438,2]
[351168996,1738387846508,-151.0,0.00016438,2]
[351168997,1738387846518,-151.0,0.00016438,2]
[351168998,1738387846527,-500.0,0.00016438,2]
[351168999,1738387846537,-500.0,0.00016438,2]
[351169000,1738387846546,-500.0,0.00016438,2]
[351169001,1738387846555,-195.80973461,0.00016438,2]
[351169002,1738387846565,-362.94903294,0.00016438,2]
[351169005,1738388110217,221.102905,0.00013973,2]
[351169006,1738388699811,180.19131,0.00013699,2]
[351169007,1738388750129,-151.0,0.00015256,2]
[351169008,1738388750151,-300.0,0.0001541,2]
[351169009,1738388750173,-7455.84623598,0.00015411,2]
[351169010,1738388837130,-1763.8724793,0.00015411,2]
[351169016,1738388948106,-2192.09093038,0.00015411,2]
[351169017,1738388952120,-7177.9806,0.00015399,2]
[351169018,1738388956087,-515.3167948,0.00015399,2]
[351169019,1738388956109,-15.3140052,0.00015411,2]
[351169289,1738389038093,-138.42428604,0.00015411,2]
[351169291,1738389038103,-500.0,0.00016068,2]
[351169292,1738389038112,-901.85995269,0.00016338,2]
[351169295,1738389038151,-9.01058245,0.00016338,2]
[351169296,1738389038160,-437.76103319,0.00016338,2]
[351169297,1738389038170,-910.87053514,0.00016366,2]
[351169298,1738389038179,-910.87053514,0.00016394,2]
[351169299,1738389038188,-151.0,0.000164,2]
[351169300,1738389038198,-300.0,0.00016408,2]
[351169301,1738389038207,-13245.59911628,0.00016409,2]
[351169302,1738389038228,-910.87053514,0.00016422,2]
[351169304,1738389038238,-212.24707501,0.00016428,2]
[351169306,1738389038248,-154.93802479,0.00016437,2]
[351169308,1738389038257,-500.0,0.00016437,2]
[351169310,1738389038267,-558.90574243,0.00016437,2]
[351169312,1738389038277,-297.0,0.00016437,2]
[351169313,1738389038286,-500.0,0.00016437,2]
[351169315,1738389038296,-500.0,0.00016437,2]
[351169318,1738389038306,-500.0,0.00016437,2]
[351169324,1738389038477,-500.0,0.00016437,2]
[351169325,1738389038487,-500.0,0.00016437,2]
[351169326,1738389038496,-208.3848226,0.00016437,2]
[351169327,1738389038506,-500.0,0.00016437,2]
[351169328,1738389038515,-500.0,0.00016437,2]
[351169329,1738389038526,-500.0,0.00016437,2]
[351169330,1738389038536,-225.52475805,0.00016437,2]
[351169331,1738389038546,-336.45921156,0.00016437,2]
[351169332,1738389038555,-500.0,0.00016437,2]
[351169333,1738389038565,-500.0,0.00016437,2]
[351169334,1738389038575,-500.0,0.00016437,2]
[351169335,1738389038587,-500.0,0.00016437,2]
[351169336,1738389038597,-500.0,0.00016437,2]
[351169337,1738389038606,-500.0,0.00016437,2]
[351169338,1738389038615,-500.0,0.00016437,2]
[351169339,1738389038623,-224.71044374,0.00016437,2]
[351169340,1738389038633,-500.0,0.00016437,2]
[351169341,1738389038643,-515.86086026,0.00016437,2]
[351169342,1738389038652,-500.0,0.00016437,2]
[351169343,1738389038662,-290.08676667,0.00016437,2]
[351169344,1738389038671,-440.77187315,0.00016437,2]
[351169345,1738389038680,-151.0,0.00016438,2]
[351169346,1738389038690,-151.0,0.00016438,2]
[351169347,1738389038699,-151.0,0.00016438,2]
[351169348,1738389038709,-505.8994022,0.00016438,2]
[351169349,1738389038719,-500.0,0.00016438,2]
[351169350,1738389038728,-504.14500566,0.00016438,2]
[351169351,1738389038738,-444.74577539,0.00016438,2]
[351169352,1738389038747,-500.0,0.00016438,2]
[351169353,1738389038756,-503.30057774,0.00016438,2]
[351169354,1738389038766,-267.76205961,0.00016438,2]
[351169355,1738389038775,-535.08743479,0.00016438,2]
[351169356,1738389038786,-500.0,0.00016438,2]
[351169357,1738389038795,-501.41594376,0.00016438,2]
[351169358,1738389038805,-617.99320134,0.00016438,2]
[351169359,1738389038814,-505.47866563,0.00016438,2]
[351169360,1738389038824,-162.25477041,0.00016438,2]
[351169361,1738389038834,-504.32161115,0.00016438,2]
[351169362,1738389038844,-505.64324038,0.00016438,2]
[351169363,1738389038854,-500.0,0.00016438,2]
[351169364,1738389038866,-503.22404283,0.00016438,2]
[351169365,1738389038877,-500.0,0.00016438,2]
[351169366,1738389038887,-448.15665867,0.00016438,2]
[351169367,1738389038896,-500.0,0.00016438,2]
[351169368,1738389038906,-500.0,0.00016438,2]
[351169369,1738389038916,-504.44479647,0.00016438,2]
[351169370,1738389038925,-500.0,0.00016438,2]
[351169371,1738389038935,-172.427042,0.00016438,2]
[351169372,1738389038945,-500.0,0.00016438,2]
[351169373,1738389038955,-172.427042,0.00016438,2]
[351169374,1738389038965,-504.5311288,0.00016438,2]
[351169375,1738389038974,-500.0,0.00016438,2]
[351169376,1738389038984,-501.52417091,0.00016438,2]
[351169377,1738389038993,-291.73817084,0.00016438,2]
[351169378,1738389039006,-447.6762264,0.00016438,2]
[351169379,1738389039017,-500.0,0.00016438,2]
[351169380,1738389039027,-500.0,0.00016438,2]
[351169381,1738389039036,-424.85031205,0.00016438,2]
[351169382,1738389039045,-502.77817974,0.00016438,2]
[351169383,1738389039055,-500.0,0.00016438,2]
[351169384,1738389039064,-541.37974987,0.00016438,2]
[351169385,1738389039074,-500.0,0.00016438,2]
[351169386,1738389039084,-500.79267784,0.00016438,2]
[351169387,1738389039093,-500.0,0.00016438,2]
[351169388,1738389039102,-501.02721994,0.00016438,2]
[351169389,1738389039111,-500.0,0.00016438,2]
[351169390,1738389039121,-500.0,0.00016438,2]
[351169391,1738389039131,-501.5248838,0.00016438,2]
[351169392,1738389039141,-500.0,0.00016438,2]
[351169393,1738389039151,-151.0,0.00016438,2]
[351169394,1738389039162,-500.0,0.00016438,2]
[351169395,1738389039172,-151.0,0.00016438,2]
[351169396,1738389039181,-500.0,0.00016438,2]
[351169397,1738389039191,-500.0,0.00016438,2]
[351169398,1738389039201,-502.56711422,0.00016438,2]
[351169399,1738389039211,-500.0,0.00016438,2]
[351169400,1738389039221,-500.0,0.00016438,2]
[351169401,1738389039230,-500.0,0.00016438,2]
[351169402,1738389039241,-151.0,0.00016438,2]
[351169403,1738389039250,-151.0,0.00016438,2]
[351169404,1738389039260,-500.0,0.00016438,2]
[351169405,1738389039270,-502.19703383,0.00016438,2]
[351169406,1738389039280,-500.0,0.00016438,2]
[351169407,1738389039289,-500.0,0.00016438,2]
[351169408,1738389039299,-500.0,0.00016438,2]
[351169409,1738389039310,-504.05875162,0.00016438,2]
[351169410,1738389039320,-500.0,0.00016438,2]
[351169411,1738389039330,-534.49696218,0.00016438,2]
[351169412,1738389039339,-500.0,0.00016438,2]
[351169413,1738389039350,-506.17505671,0.00016438,2]
[351169414,1738389039360,-503.98772477,0.00016438,2]
[351169415,1738389039370,-500.0,0.00016438,2]
[351169416,1738389039380,-502.00413661,0.00016438,2]
[351169417,1738389039390,-503.52179944,0.00016438,2]
[351169418,1738389039399,-500.0,0.00016438,2]
[351169419,1738389039409,-500.0,0.00016438,2]
[351169420,1738389039418,-500.0,0.00016438,2]
[351169421,1738389039428,-248.94755676,0.00016438,2]
[351169422,1738389039437,-502.86728584,0.00016438,2]
[351169423,1738389039447,-500.0,0.00016438,2]
[351169424,1738389039457,-500.0,0.00016438,2]
[351169425,1738389039466,-500.0,0.00016438,2]
[351169426,1738389039477,-510.09140036,0.00016438,2]
[351169427,1738389039487,-503.24344635,0.00016438,2]
[351169428,1738389039496,-501.10364396,0.00016438,2]
[351169429,1738389039506,-500.0,0.00016438,2]
[351169430,1738389039516,-151.0,0.00016438,2]
[351169431,1738389039526,-151.0,0.00016438,2]
[351169432,1738389039536,-211.130354,0.00016438,2]
[351169433,1738389039546,-500.0,0.00016438,2]
[351169434,1738389039556,-503.60821671,0.00016438,2]
[351169435,1738389039566,-500.0,0.00016438,2]
[351169437,1738389039575,-468.59143281,0.00016438,2]
[351169438,1738389039585,-151.0,0.00016438,2]
[351169439,1738389039593,-500.0,0.00016438,2]
[351169440,1738389039603,-501.68967736,0.00016438,2]
[351169441,1738389039613,-500.0,0.00016438,2]
[351169442,1738389039623,-500.0,0.00016438,2]
[351169443,1738389039632,-151.0,0.00016438,2]
[351169444,1738389039642,-151.0,0.00016438,2]
[351169445,1738389039652,-151.0,0.00016438,2]
[351169446,1738389039661,-500.0,0.00016438,2]
[351169447,1738389039671,-500.0,0.00016438,2]
[351169449,1738389039681,-500.0,0.00016438,2]
[351169451,1738389039691,-500.0,0.00016438,2]
[351169452,1738389039700,-501.51787242,0.00016438,2]
[351169453,1738389039710,-500.0,0.00016438,2]
[351169454,1738389039720,-500.0,0.00016438,2]
[351169455,1738389039730,-502.19201491,0.00016438,2]
[351169456,1738389039740,-500.0,0.00016438,2]
[351169457,1738389039749,-502.44434412,0.00016438,2]
[351169458,1738389039759,-500.0,0.00016438,2]
[351169459,1738389039769,-500.0,0.00016438,2]
[351169460,1738389039781,-500.0,0.00016438,2]
[351169461,1738389039792,-500.0,0.00016438,2]
[351169462,1738389039802,-510.00735202,0.00016438,2]
[351169463,1738389039812,-500.0,0.00016438,2]
[351169464,1738389039821,-503.46073498,0.00016438,2]
[351169465,1738389039832,-500.0,0.00016438,2]
[351169466,1738389039842,-502.44383188,0.00016438,2]
[351169467,1738389039851,-500.0,0.00016438,2]
[351169469,1738389039863,-500.0,0.00016438,2]
[351169471,1738389039872,-283.768208,0.00016438,2]
[351169473,1738389039882,-500.0,0.00016438,2]
[351169474,1738389039891,-500.0,0.00016438,2]
[351169475,1738389039901,-500.0,0.00016438,2]
[351169476,1738389039911,-500.0,0.00016438,2]
[351169477,1738389039921,-500.0,0.00016438,2]
[351169479,1738389039930,-504.89759804,0.00016438,2]
[351169481,1738389039939,-500.0,0.00016438,2]
[351169483,1738389039948,-500.0,0.00016438,2]
[351169485,1738389039957,-500.0,0.00016438,2]
[351169487,1738389039967,-500.0,0.00016438,2]
[351169489,1738389039977,-500.0,0.00016438,2]
[351169491,1738389039987,-500.0,0.00016438,2]
[351169492,1738389039997,-500.0,0.00016438,2]
[351169494,1738389040006,-504.70023193,0.00016438,2]
[351169496,1738389040016,-500.0,0.00016438,2]
[351169498,1738389040027,-500.0,0.00016438,2]
[351169500,1738389040037,-208.342255,0.00016438,2]
[351169502,1738389040047,-503.06498827,0.00016438,2]
[351169504,1738389040057,-208.342255,0.00016438,2]
[351169506,1738389040067,-500.0,0.00016438,2]
[351169508,1738389040076,-500.0,0.00016438,2]
[351169510,1738389040086,-594.82518116,0.00016438,2]
[351169512,1738389040095,-208.342255,0.00016438,2]
[351169514,1738389040104,-208.342255,0.00016438,2]
[351169516,1738389040113,-500.0,0.00016438,2]
[351169518,1738389040123,-500.0,0.00016438,2]
[351169520,1738389040132,-500.0,0.00016438,2]
[351169522,1738389040141,-500.0,0.00016438,2]
[351169524,1738389040151,-500.0,0.00016438,2]
[351169526,1738389040161,-500.0,0.00016438,2]
[351169527,1738389040171,-500.0,0.00016438,2]
[351169528,1738389040181,-500.0,0.00016438,2]
[351169529,1738389040190,-500.0,0.00016438,2]
[351169530,1738389040200,-500.0,0.00016438,2]
[351169531,1738389040211,-514.38189878,0.00016438,2]
[351169532,1738389040220,-619.15,0.00016438,2]
[351169533,1738389040230,-500.0,0.00016438,2]
[351169535,1738389040239,-508.06823915,0.00016438,2]
[351169537,1738389040249,-219.56219862,0.00016438,2]
[351169540,1738389040258,-501.49659084,0.00016438,2]
[351169541,1738389040267,-502.79809151,0.00016438,2]
[351169543,1738389040276,-500.0,0.00016438,2]
[351169545,1738389040286,-502.80184314,0.00016438,2]
[351169547,1738389040296,-500.0,0.00016438,2]
[351169550,1738389040305,-363.70664859,0.00016438,2]
[351169552,1738389040315,-500.0,0.00016438,2]